bitfinex-derivatives/quotes_ETHF0:USTF0_20250531
["timestamp","ask_amount","ask_price","bid_price","bid_amount"]
[1748662483383,0.7991,2501.9,2501.8,0.00599209]
[1748662484383,1.07045339,2501.9,2501.8,0.00599209]
[1748662484579,2.38645339,2501.9,2501.8,0.00599209]
[1748662485280,0.27135339,2501.9,2501.8,0.00599209]
[1748662485686,0.27135339,2501.9,2501.8,0.80513209]
[1748662487474,0.27135339,2501.9,2501.8,3.48513209]
[1748662491689,1.07045339,2501.9,2501.8,0.00599209]
[1748662492090,2.31044135,2501.9,2501.8,0.00599209]
[1748662492285,2.31044135,2501.9,2501.8,1.30379209]
[1748662492686,1.51134135,2501.9,2501.8,2.10293209]
[1748662492992,2.31044135,2501.9,2501.8,1.30379209]
[1748662493192,2.31044135,2501.9,2501.8,0.00599209]
[1748662493790,3.66904135,2501.9,2501.8,0.00599209]
[1748662496488,1.51134135,2501.9,2501.8,0.00599209]
[1748662496683,1.51134135,2501.9,2501.8,0.80513209]
[1748662497087,1.51134135,2501.9,2501.8,0.00599209]
[1748662497287,1.51134135,2501.9,2501.8,1.30239209]
[1748662497795,2.31044135,2501.9,2501.8,1.30239209]
[1748662498283,2.31044135,2501.9,2501.8,0.00599209]
[1748662498793,5.51824135,2501.9,2501.8,0.00599209]
[1748662500991,11.71692135,2501.9,2501.1,5.8432]
[1748662501192,0.79936,2501.1,2501.0,3.2078]
[1748662501398,3.2078,2501.4,2501.3,0.7993]
[1748662502001,3.2078,2501.4,2501.2,0.79931]
[1748662502200,0.7993,2501.3,2501.2,4.555]
[1748662502401,3.2078,2501.4,2501.0,5.9248]
[1748662502898,3.2078,2501.4,2501.2,0.79931]
[1748662503101,3.2078,2501.4,2501.3,1.3698]
[1748662503295,3.2078,2501.4,2501.3,2.1691]
[1748662503502,3.2078,2501.4,2501.3,1.3698]
[1748662503701,4.00706,2501.4,2501.3,1.3698]
[1748662503895,0.79926,2501.4,2501.3,1.3698]
[1748662504091,2.06208615,2501.4,2501.3,1.3698]
[1748662504298,0.79933,2501.2,2501.0,4.555]
[1748662504501,0.79933,2501.2,2501.1,1.2576]
[1748662504694,0.79931,2501.3,2501.1,1.2576]
[1748662505199,3.2078,2501.4,2501.1,1.2576]
[1748662505399,3.2078,2501.4,2500.9,4.555]
[1748662505606,0.79937,2501.1,2500.9,4.555]
[1748662505804,0.79937,2501.1,2501.0,1.0577]
[1748662505999,0.79939,2501.0,2500.9,4.555]
[1748662506303,2.16849,2501.0,2500.9,4.555]
[1748662506498,0.79942,2500.9,2500.7,5.35449]
[1748662506704,2.16851,2501.0,2500.7,5.35449]
[1748662507298,0.07155339,2501.2,2501.0,0.79939]
[1748662507501,0.07155339,2501.2,2501.1,0.79936]
[1748662508201,0.87090339,2501.2,2500.9,3.2078]
[1748662508401,0.87090339,2501.2,2501.0,4.556]
[1748662508596,0.79936,2501.1,2501.0,4.556]
[1748662509404,0.79939,2501.0,2500.9,1.3022]
[1748662509705,0.27145339,2501.2,2500.9,4.556]
[1748662509908,0.27145339,2501.2,2501.1,0.79936]
[1748662510700,0.1999,2501.2,2501.1,1.47026]
[1748662510903,0.00599209,2501.6,2501.5,0.79923]
[1748662511102,0.00599209,2501.6,2501.5,5.35523]
[1748662511302,0.80519209,2501.6,2501.5,4.555]
[1748662511507,0.00599209,2501.6,2501.5,4.555]
[1748662511705,0.00599209,2501.6,2501.5,5.35423]
[1748662512808,0.00599209,2501.6,2501.4,1.2713]
[1748662513008,0.00599209,2501.6,2501.5,5.35423]
[1748662513408,0.00599209,2501.6,2501.4,2.07055]
[1748662513707,0.00599209,2501.6,2501.5,5.34723]
[1748662513907,0.00599209,2501.6,2501.5,6.70833]
[1748662516608,0.80519209,2501.6,2501.5,5.9091]
[1748662516808,0.00599209,2501.6,2501.5,1.3611]
[1748662517006,0.80519209,2501.6,2501.5,5.9091]
[1748662517206,0.80519209,2501.6,2501.5,1.3611]
[1748662517413,0.00599209,2501.6,2501.5,6.70833]
[1748662519213,0.80519209,2501.6,2501.5,1.3611]
[1748662519409,0.00599209,2501.6,2501.5,2.16033]
[1748662519610,0.00599209,2501.6,2501.5,6.70833]
[1748662519813,0.07754548,2501.6,2501.5,6.70833]
[1748662520107,0.87674548,2501.6,2501.5,4.548]
[1748662521113,0.79929,2501.4,2501.3,4.548]
[1748662521510,0.07754548,2501.6,2501.5,0.79923]
[1748662525513,0.07754548,2501.6,2501.5,5.34723]
[1748662527617,0.07754548,2501.6,2501.5,8.55503]
[1748662528006,0.00599209,2501.6,2501.5,8.55503]
[1748662528704,1.3306,2502.3,2502.2,0.79901]
[1748662528905,1.46508,2502.3,2502.1,0.79902]
[1748662529310,0.6661,2502.3,2502.1,1.3068]
[1748662529510,1.9186,2502.3,2502.1,1.3068]
[1748662529711,1.28404257,2502.2,2502.1,1.3068]
[1748662529913,2.08305257,2502.2,2502.1,1.3068]
[1748662530120,0.79907,2502.0,2501.9,0.00599209]
[1748662530809,2.76887,2502.0,2501.9,0.00599209]
[1748662531006,4.05291257,2502.0,2501.9,0.00599209]
[1748662531826,1.28404257,2502.0,2501.9,5.00599209]
[1748662532018,3.14449777,2502.7,2502.6,0.79888]
[1748662532321,9.22e-06,2502.7,2502.6,5.34688]
[1748662532508,9.22e-06,2502.7,2502.6,11.71228]
[1748662532714,9.22e-06,2502.7,2502.6,12.96198]
[1748662533117,1.31e-06,2502.9,2502.8,0.79882]
[1748662533418,1.31e-06,2502.9,2502.8,9.00662]
[1748662534219,3.2078,2504.1,2504.0,0.79843]
[1748662534418,3.2078,2504.1,2504.0,5.34643]
[1748662535120,0.00599209,2504.3,2504.1,0.79838]
[1748662535321,1.37549209,2504.3,2504.2,0.79837]
[1748662535522,2.09e-06,2504.3,2504.2,4.00617]
[1748662535721,2.09e-06,2504.3,2504.2,9.00617]
[1748662536622,3.2078,2505.1,2505.0,0.79812]
[1748662536821,3.2078,2505.1,2505.0,5.34412]
[1748662537120,3.2078,2505.4,2505.3,0.79802]
[1748662537322,3.2078,2505.4,2505.3,5.34402]
[1748662538322,3.2078,2505.4,2505.3,4.546]
[1748662540618,3.2078,2505.4,2505.3,5.34402]
[1748662541121,3.2078,2505.4,2505.3,4.546]
[1748662541420,3.2078,2505.4,2505.3,5.34402]
[1748662541920,3.2078,2505.4,2505.3,4.546]
[1748662542325,3.2078,2505.4,2505.1,0.00599209]
[1748662542523,2.0897,2505.3,2505.1,4.54999209]
[1748662542823,0.00599209,2505.6,2505.1,4.54999209]
[1748662543215,1.27359209,2505.6,2505.3,0.798]
[1748662543412,1.27359209,2505.6,2505.4,0.79799]
[1748662544625,1.27359209,2505.6,2505.1,4.54999209]
[1748662544922,1.27359209,2505.6,2505.4,0.79797]
[1748662545729,1.27359209,2505.6,2505.1,4.54999209]
[1748662546023,2.00279209,2505.6,2505.4,0.79797]
[1748662546623,2.80072209,2505.6,2505.3,0.79801]
[1748662547028,2.80072209,2505.6,2505.3,5.33099]
[1748662547724,2.00279209,2505.6,2505.4,0.79799]
[1748662547926,2.00279209,2505.6,2505.5,0.79796]
[1748662548226,2.00279209,2505.6,2505.4,0.79797]
[1748662548525,2.00279209,2505.6,2505.5,0.79796]
[1748662548927,0.00599209,2505.6,2505.5,0.79796]
[1748662549821,0.00599209,2505.6,2505.3,4.533]
[1748662550023,0.798,2505.4,2505.3,4.533]
[1748662550433,1.53108,2505.5,2505.3,4.533]
[1748662550726,1.2654,2505.4,2505.3,5.33102]
[1748662550923,1.2654,2505.4,2505.3,4.533]
[1748662551120,1.2654,2505.4,2505.3,5.33102]
[1748662551323,2.06339,2505.4,2505.3,4.533]
[1748662552121,2.06341,2505.4,2505.3,4.532]
[1748662552322,1.2654,2505.4,2505.2,0.79805]
[1748662552517,2.06341,2505.4,2505.3,4.532]
[1748662555124,0.79802,2505.3,2505.2,4.532]
[1748662555324,2.09112,2505.3,2505.2,4.532]
[1748662555618,0.79801,2505.4,2505.2,4.532]
[1748662555825,0.79799,2505.4,2505.2,5.33004]
[1748662556223,0.79802,2505.3,2505.2,4.532]
[1748662557924,1.2931,2505.4,2505.1,0.00599209]
[1748662557925,0.79805,2505.2,2505.1,0.00599209]
[1748662558129,2.09115,2505.2,2505.1,0.00599209]
[1748662559729,4.0058,2505.4,2505.2,0.79804]
[1748662559929,0.74158157,2505.5,2505.3,0.79801]
[1748662559930,1.53955157,2505.5,2505.3,0.79801]
[1748662560131,0.79802,2505.3,2505.2,4.532]
[1748662560433,3.2078,2505.4,2505.1,0.00599209]
[1748662560434,0.79805,2505.2,2505.1,0.00599209]
[1748662560638,2.12095,2505.2,2505.1,0.00599209]
[1748662561630,3.34321403,2505.2,2505.1,0.00599209]
[1748662562428,3.34321403,2505.2,2504.6,4.5561]
[1748662562429,0.79821,2504.7,2504.6,3.2078]
[1748662562628,3.2078,2504.7,2503.8,44.24829]
[1748662562829,0.79844,2504.0,2503.9,4.532]
[1748662563034,0.79852,2503.8,2503.6,4.532]
[1748662563223,1.2632,2503.9,2503.6,4.532]
[1748662563428,0.00599209,2504.0,2503.8,3.2078]
[1748662563629,0.00599209,2504.0,2503.9,0.79847]
[1748662563834,0.00599209,2504.0,2503.9,2.14677]
[1748662564132,1.23109131,2504.0,2503.9,2.14677]
[1748662564327,1.23109131,2504.0,2503.9,6.67877]
[1748662565228,1.23109131,2504.0,2503.9,1.3483]
[1748662565436,1.23109131,2504.0,2503.9,5.8803]
[1748662565828,1.23109131,2504.0,2503.9,6.67877]
[1748662566029,1.23109131,2504.0,2503.9,9.88657]
[1748662566231,1.23109131,2504.0,2503.9,6.67877]
[1748662566430,1.23109131,2504.0,2503.9,14.88657]
[1748662566731,0.00599209,2504.0,2503.9,14.88657]
[1748662567229,0.00599209,2504.0,2503.9,6.67877]
[1748662567422,0.00599209,2504.0,2503.9,2.14677]
[1748662567628,0.00599209,2504.0,2503.9,6.67877]
[1748662568030,0.00599209,2504.0,2503.9,5.33047]
[1748662568336,0.00599209,2504.0,2503.9,4.532]
[1748662569226,0.00599209,2504.0,2503.9,5.33047]
[1748662569628,0.80443209,2504.0,2503.7,2.07051]
[1748662569930,0.80443209,2504.0,2503.7,2.07052]
[1748662570126,0.79848,2503.9,2503.6,8.53934]
[1748662570336,2.14918,2503.9,2503.6,8.53934]
[1748662570535,2.14918,2503.9,2503.6,9.85424]
[1748662570731,1.3507,2503.9,2503.7,0.79851]
[1748662570932,2.14918,2503.9,2503.6,9.85425]
[1748662571133,1.3507,2503.9,2503.7,0.79852]
[1748662571336,1.3507,2503.9,2503.6,9.0557]
[1748662571537,0.79851,2503.8,2503.6,9.0557]
[1748662571840,0.00599209,2504.0,2503.9,0.79847]
[1748662572845,1.22839342,2504.0,2503.9,0.79847]
[1748662574043,1.22839342,2504.0,2503.7,1.3149]
[1748662574340,0.00599209,2504.0,2503.7,2.11342]
[1748662574532,0.80445209,2504.0,2503.7,2.11342]
[1748662574730,0.79849,2503.9,2503.7,1.3149]
[1748662574936,2.09249,2503.9,2503.7,1.3149]
[1748662575132,0.00599209,2504.0,2503.7,1.3149]
[1748662575335,0.00599209,2504.0,2503.9,0.79847]
[1748662576138,0.80445209,2504.0,2503.8,0.79849]
[1748662576441,0.00599209,2504.0,2503.7,1.3149]
[1748662576746,0.00599209,2504.0,2503.8,0.7985]
[1748662576945,0.7985,2503.8,2503.7,1.3149]
[1748662577738,1.34499209,2504.0,2503.6,7.7408]
[1748662577939,0.7216,2503.9,2503.6,7.7408]
[1748662578139,0.79853,2503.7,2503.6,7.7408]
[1748662578441,1.339,2503.8,2503.6,7.7408]
[1748662578442,2.13752,2503.8,2503.6,7.7408]
[1748662578639,2.13752,2503.8,2503.6,8.53936]
[1748662578835,0.79853,2503.7,2503.6,7.7408]
[1748662579035,2.13753,2503.7,2503.6,4.533]
[1748662579241,1.339,2503.7,2503.6,4.533]
[1748662579446,1.339,2503.7,2503.6,5.33156]
[1748662580146,4.00632,2503.8,2503.6,5.33156]
[1748662580345,0.1997,2503.7,2503.6,5.33156]
[1748662580840,0.99823,2503.7,2503.6,4.533]
[1748662581034,2.36013,2503.7,2503.6,4.533]
[1748662581748,0.79856,2503.6,2503.5,0.00599209]
[1748662581950,1.46656,2503.6,2503.5,0.00599209]
[1748662582343,6.46656,2503.6,2503.5,0.00599209]
[1748662582538,0.668,2503.6,2503.0,4.524]
[1748662582848,0.1997,2503.7,2503.6,0.79856]
[1748662585241,0.99824,2503.7,2503.5,1.9869]
[1748662585441,0.1997,2503.7,2503.5,1.9869]
[1748662585744,0.1997,2503.7,2503.6,0.79856]
[1748662588637,0.07754548,2504.0,2503.6,0.79856]
[1748662588638,0.07754548,2504.0,2503.6,5.79856]
[1748662588844,0.07754548,2504.0,2503.9,0.79847]
[1748662589045,0.07754548,2504.0,2503.9,5.32247]
[1748662589246,0.0655613,2504.0,2503.9,12.25367]
[1748662591146,1.3e-06,2504.0,2503.9,12.25367]
[1748662591849,5.0000013,2504.0,2503.5,0.7136]
[1748662592050,0.79855,2503.7,2503.4,8.53640209]
[1748662592247,0.79855,2503.7,2503.4,7.73779209]
[1748662592447,1.2499,2503.7,2503.4,7.73779209]
[1748662592646,1.2499,2503.7,2503.6,0.79856]
[1748662592849,1.4057,2503.9,2503.6,0.79856]
[1748662593052,1.4057,2503.9,2503.8,0.7985]
[1748662593248,1.4057,2503.9,2503.5,1.2814]
[1748662593249,2.20418,2503.9,2503.6,5.32256]
[1748662593450,2.6556,2503.9,2503.7,0.79852]
[1748662593644,1.4057,2503.9,2503.7,0.79852]
[1748662593852,2.2042,2503.9,2503.4,3.21379209]
[1748662594052,2.6556,2503.9,2503.7,0.7985]
[1748662594252,1.4057,2503.9,2503.8,0.7985]
[1748662594561,0.6756,2503.9,2503.8,0.7985]
[1748662594956,1.3e-06,2504.0,2503.9,0.79847]
[1748662595255,1.3e-06,2504.0,2503.9,5.32247]
[1748662595455,1.3e-06,2504.0,2503.9,10.32247]
[1748662595952,1.3e-06,2504.0,2503.9,11.58457]
[1748662596255,1.3e-06,2504.0,2503.9,7.06057]
[1748662596458,1.3e-06,2504.0,2503.9,11.58457]
[1748662596960,1.3e-06,2504.0,2503.9,6.58457]
[1748662598155,1.3e-06,2504.0,2503.9,2.06057]
[1748662598350,1.3e-06,2504.0,2503.9,5.7861]
[1748662598859,1.3e-06,2504.0,2503.9,4.524]
[1748662599055,1.3e-06,2504.0,2503.9,5.32247]
[1748662599958,1.2533013,2504.0,2503.9,5.32247]
[1748662600158,1.3e-06,2504.0,2503.9,5.32247]
[1748662601457,1.3e-06,2504.0,2503.9,6.70377]
[1748662606067,1.3e-06,2504.0,2503.9,5.31247]
[1748662607867,1.9216013,2504.0,2503.9,5.31247]
[1748662608069,0.6407013,2504.0,2503.9,5.31247]
[1748662608372,1.3e-06,2504.0,2503.9,5.31247]
[1748662611672,0.7984413,2504.0,2503.9,4.514]
[1748662611879,1.3e-06,2504.0,2503.9,5.31247]
[1748662612770,1.3559013,2504.0,2503.9,5.31247]
[1748662612971,1.3559013,2504.0,2503.9,4.514]
[1748662613278,1.3559013,2504.0,2503.9,5.31247]
[1748662613879,1.3559013,2504.0,2503.9,4.514]
[1748662614374,1.3559013,2504.0,2503.9,5.31247]
[1748662614871,1.3e-06,2504.0,2503.9,5.31247]
[1748662615277,2.0470413,2504.0,2503.9,4.514]
[1748662615573,1.2486013,2504.0,2503.9,4.514]
[1748662615975,1.2486013,2504.0,2503.9,5.31247]
[1748662616477,1.2486013,2504.0,2503.9,4.514]
[1748662616677,0.7002013,2504.0,2503.9,5.31247]
[1748662616878,2.0141013,2504.0,2503.9,5.31247]
[1748662617275,2.0141013,2504.0,2503.9,4.514]
[1748662617579,2.8125413,2504.0,2503.9,4.514]
[1748662617779,0.7985,2503.8,2503.7,3.2078]
[1748662618174,0.79853,2503.7,2503.6,4.514]
[1748662618375,2.11243,2503.7,2503.6,4.514]
[1748662618975,7.11243,2503.7,2503.6,4.514]
[1748662620174,7.11243,2503.7,2503.4,0.00599209]
[1748662620175,0.7986,2503.5,2503.4,0.00599209]
[1748662620479,22.5038,2503.6,2503.5,0.7986]
[1748662620670,3.2078,2503.6,2503.5,0.7986]
[1748662620874,3.2078,2503.6,2503.5,2.0566]
[1748662621473,3.2078,2503.6,2503.5,0.7986]
[1748662621684,2.11068,2503.6,2503.5,4.514]
[1748662621884,2.11068,2503.6,2503.4,0.80460209]
[1748662622083,3.9027,2503.9,2503.8,0.7985]
[1748662622284,1.3e-06,2504.0,2503.9,0.79847]
[1748662622582,1.3e-06,2504.0,2503.9,6.61647]
[1748662623284,1.3e-06,2504.0,2503.9,11.61647]
[1748662624076,0.00599209,2504.2,2504.1,0.7984]
[1748662624274,0.00599209,2504.2,2504.1,4.0062]
[1748662625987,0.20559209,2504.2,2504.1,4.0062]
[1748662628084,0.20559209,2504.2,2504.1,9.0062]
[1748662629393,2.09e-06,2504.2,2504.1,10.2853]
[1748662629688,4.0059,2505.1,2504.8,0.79817]
[1748662629890,0.79812,2505.0,2504.9,4.514]
[1748662630189,4.0059,2505.1,2504.9,4.514]
[1748662630391,4.00591,2505.1,2504.9,4.514]
[1748662630591,4.65491,2505.1,2504.9,5.31215]
[1748662630783,0.79812,2505.0,2504.9,4.514]
[1748662630983,1.3352,2505.0,2504.9,5.31215]
[1748662632289,1.3352,2505.0,2504.9,4.514]
[1748662632493,6.3352,2505.0,2504.7,0.00599209]
[1748662632686,1.3352,2505.0,2504.7,0.00599209]
[1748662632885,1.3352,2505.0,2504.9,0.79815]
[1748662633681,1.3352,2505.0,2504.7,0.00599209]
[1748662633887,0.79815,2504.9,2504.7,0.80418209]
[1748662634088,1.2838,2504.8,2504.7,0.00599209]
[1748662634287,1.2838,2504.8,2504.7,4.51899209]
[1748662634487,1.2838,2504.8,2504.7,5.31720209]
[1748662634688,1.2838,2504.8,2504.7,0.80420209]
[1748662635292,1.2838,2504.8,2504.7,0.00599209]
[1748662635494,1.2838,2504.8,2504.7,0.80420209]
[1748662636793,0.79812,2505.0,2504.8,0.79816]
[1748662636991,2.15472,2505.0,2504.8,0.79816]
[1748662637194,1.3566,2505.0,2504.8,0.79816]
[1748662637392,1.3566,2505.0,2504.9,0.79815]
[1748662637592,4.0563,2505.1,2505.0,0.79812]
[1748662637789,4.0563,2505.1,2505.0,5.30312]
[1748662638093,0.1995,2505.1,2505.0,5.30312]
[1748662640393,0.1995,2505.1,2505.0,4.505]
[1748662640598,0.1995,2505.1,2505.0,5.30312]
[1748662642300,0.1995,2505.1,2505.0,10.30312]
[1748662642801,0.00599209,2505.2,2505.1,0.79808]
[1748662642994,2.09e-06,2505.2,2505.1,5.79808]
[1748662643196,0.6468,2506.3,2506.2,0.79773]
[1748662643497,2.3481717,2506.4,2506.3,0.7977]
[1748662643802,1.2838,2506.5,2506.4,0.79767]
[1748662644202,0.6941,2506.6,2506.5,0.79764]
[1748662644406,1.49172,2506.6,2506.3,2.16049]
[1748662644701,1.2686,2506.5,2506.3,2.16049]
[1748662644903,1.2686,2506.5,2506.4,0.79767]
[1748662645399,1.2686,2506.5,2506.3,1.3628]
[1748662645902,3.21379209,2506.7,2506.6,0.79761]
[1748662646205,3.21379209,2506.7,2506.6,4.504]
[1748662646597,4.01136209,2506.7,2506.6,4.504]
[1748662646798,3.21379209,2506.7,2506.6,4.504]
[1748662646998,8.21379209,2506.7,2506.3,4.503]
[1748662647196,0.79773,2506.2,2506.1,0.00599209]
[1748662647404,0.79783,2505.9,2505.8,4.503]
[1748662647704,0.79781,2506.0,2505.8,4.503]
[1748662647900,1.2523,2505.9,2505.8,4.503]
[1748662648098,4.4601,2505.9,2505.4,40.246]
[1748662648294,0.79796,2505.5,2505.4,44.749]
[1748662648499,0.79796,2505.5,2505.4,4.503]
[1748662649702,1.9071,2505.7,2505.5,0.79794]
[1748662650002,1.9071,2505.7,2505.6,0.79792]
[1748662650196,3.2078,2505.8,2505.4,4.503]
[1748662650197,3.2078,2505.8,2505.7,0.79789]
[1748662650404,0.7977,2506.3,2506.1,0.79775]
[1748662650602,4.5642,2506.4,2506.1,4.503]
[1748662650603,0.79773,2506.2,2506.1,4.503]
[1748662650899,0.7977,2506.3,2506.1,4.503]
[1748662651111,1.3564,2506.2,2506.1,5.30077]
[1748662651302,1.3564,2506.2,2506.1,4.503]
[1748662651602,1.3564,2506.2,2506.1,5.30077]
[1748662651803,1.3564,2506.2,2506.1,4.503]
[1748662651999,2.15413,2506.2,2506.1,4.503]
[1748662652410,1.3564,2506.2,2506.1,5.30077]
[1748662653005,3.2078,2506.4,2506.1,4.503]
[1748662653305,3.2078,2506.4,2506.3,0.7977]
[1748662653902,3.2078,2506.4,2506.1,4.503]
[1748662654106,3.2078,2506.4,2506.3,0.7977]
[1748662655199,0.00599209,2506.7,2506.6,0.79761]
[1748662655509,0.00599209,2506.7,2506.6,5.29961]
[1748662655709,0.00599209,2506.7,2506.6,4.502]
[1748662656102,1.32969209,2506.7,2506.6,4.502]
[1748662656606,1.32969209,2506.7,2506.6,5.29961]
[1748662656807,0.00599209,2506.7,2506.6,5.29961]
[1748662657909,0.00599209,2506.7,2506.6,6.57401]
[1748662658209,0.00599209,2506.7,2506.6,5.29961]
[1748662658609,0.00599209,2506.7,2506.6,6.60761]
[1748662662314,0.00599209,2506.7,2506.5,4.00543]
[1748662662611,0.00599209,2506.7,2506.6,5.29861]
[1748662663611,0.00599209,2506.7,2506.6,4.501]
[1748662663802,3.96465601,2508.6,2507.9,0.79719]
[1748662664006,1.3698,2508.5,2507.9,5.29819]
[1748662664510,1.3698,2508.5,2507.9,4.501]
[1748662664708,1.37579209,2508.5,2508.2,3.2078]
[1748662665212,1.37579209,2508.5,2507.9,4.49899209]
[1748662665509,1.37579209,2508.5,2508.0,3.2078]
[1748662665717,1.37579209,2508.5,2508.2,0.79708]
[1748662665907,1.37579209,2508.5,2508.1,2.09711]
[1748662666211,1.37579209,2508.5,2508.2,0.79709]
[1748662666511,1.37579209,2508.5,2508.2,0.79708]
[1748662666810,1.37579209,2508.5,2508.1,2.09712]
[1748662667005,1.37579209,2508.5,2508.2,0.79709]
[1748662667412,1.37579209,2508.5,2508.1,1.3]
[1748662667614,1.37579209,2508.5,2508.2,0.79707]
[1748662667814,1.37579209,2508.5,2508.1,1.3]
[1748662668017,1.37579209,2508.5,2508.4,0.79703]
[1748662668517,1.37579209,2508.5,2508.3,4.492]
[1748662668713,0.00599209,2508.5,2508.4,0.79703]
[1748662668912,0.00599209,2508.5,2508.4,2.15313]
[1748662669914,0.07754548,2508.5,2508.4,2.15313]
[1748662675429,0.07754548,2508.5,2508.4,5.28803]
[1748662677826,0.07754548,2508.5,2508.4,6.62253]
[1748662678123,0.07754548,2508.5,2508.4,6.62153]
[1748662684931,5.48e-06,2508.5,2508.4,6.62153]
[1748662685726,5.48e-06,2508.5,2508.4,11.62153]
[1748662685938,0.79667,2509.6,2508.4,11.62153]
[1748662685939,8.58e-06,2508.7,2508.6,0.79697]
[1748662686231,8.58e-06,2508.7,2508.6,4.00477]
[1748662686424,8.58e-06,2508.7,2508.6,9.00477]
[1748662686831,8.58e-06,2508.7,2508.6,13.49477]
[1748662687227,8.58e-06,2508.7,2508.6,8.49477]
[1748662687628,8.58e-06,2508.7,2508.6,4.00477]
[1748662687829,8.58e-06,2508.7,2508.6,8.49477]
[1748662690832,8.58e-06,2508.7,2508.6,7.6978]
[1748662691031,8.58e-06,2508.7,2508.6,8.49477]
[1748662692334,8.58e-06,2508.7,2508.6,7.6978]
[1748662692528,8.58e-06,2508.7,2508.6,8.49477]
[1748662692926,1.25710337,2508.7,2508.6,8.49477]
[1748662693839,1.25710337,2508.7,2508.3,3.2078]
[1748662694134,0.86856339,2508.5,2508.3,3.2078]
[1748662694430,0.6877,2508.9,2508.3,3.2078]
[1748662694636,0.6804,2511.5,2510.2,3.2078]
[1748662694836,0.6804,2511.5,2510.3,4.749]
[1748662694837,1.2387,2511.0,2510.3,4.749]
[1748662695140,1.31834954,2511.0,2510.9,3.2078]
[1748662695536,1.2387,2511.0,2510.9,3.2078]
[1748662697436,1.2387,2511.0,2510.9,3.54824658]
[1748662697738,6.2387,2511.0,2510.9,3.2078]
[1748662698139,6.2387,2511.0,2510.9,3.54818352]
[1748662698337,6.2387,2511.0,2510.9,3.2078]
[1748662698640,6.2387,2511.0,2510.9,3.52110936]
[1748662698940,6.2387,2511.0,2510.9,3.5210945]
[1748662699140,6.2387,2511.0,2510.9,3.52109676]
[1748662699442,6.2387,2511.0,2510.9,3.52059442]
[1748662699641,6.2387,2511.0,2510.9,3.2078]
[1748662700141,6.31025339,2511.0,2510.9,3.2078]
[1748662700331,1.33145522,2511.0,2510.9,3.2078]
[1748662700538,2.12765522,2511.0,2510.9,3.2078]
[1748662701543,2.12765522,2511.0,2510.9,3.52074556]
[1748662701842,2.12765522,2511.0,2510.9,3.52074649]
[1748662702038,2.12765522,2511.0,2510.9,3.2078]
[1748662702234,2.12765522,2511.0,2510.7,0.00598003]
[1748662702235,0.79627,2510.8,2510.7,0.00598003]
[1748662702838,2.13287,2510.8,2510.7,0.00598003]
[1748662703046,2.13287,2510.8,2510.7,3.21378003]
[1748662703243,2.13287,2510.8,2510.7,0.00598003]
[1748662703552,1.3366,2510.8,2510.7,3.21378003]
[1748662703739,2.13287,2510.8,2510.7,3.21378003]
[1748662704645,0.79644,2510.3,2510.2,3.2078]
[1748662705148,5.79644,2510.3,2510.2,3.52060441]
[1748662705345,0.79644,2510.3,2510.2,3.2078]
[1748662705747,0.79644,2510.3,2509.7,0.7966]
[1748662705748,1.99129,2510.1,2509.2,3.2078]
[1748662706044,0.79668,2509.5,2509.3,0.31321907]
[1748662706655,2.04101,2509.4,2509.3,0.31321907]
[1748662706840,1.2443,2509.4,2509.3,0.62518738]
[1748662707047,2.04101,2509.4,2509.3,0.62412731]
[1748662707246,2.04101,2509.4,2509.3,0.62427704]
[1748662707451,1.2443,2509.4,2509.3,0.31321907]
[1748662707947,1.2443,2509.4,2509.3,0.62428083]
[1748662708355,1.2443,2509.4,2509.3,0.62418864]
[1748662708847,1.2443,2509.4,2509.3,0.62418466]
[1748662709149,1.2443,2509.4,2509.3,0.31321907]
[1748662709450,3.2078,2510.3,2509.3,5.31321907]
[1748662709661,3.97941,2512.1,2509.3,5.31321907]
[1748662709662,0.79641,2510.4,2509.8,3.2078]
[1748662709952,0.80236003,2510.5,2510.3,3.2078]
[1748662710152,0.79639,2510.4,2510.3,3.2078]
[1748662713046,0.80237003,2510.5,2510.3,3.2078]
[1748662714359,0.00598003,2510.5,2510.3,3.2078]
[1748662714550,0.00598003,2510.5,2510.4,1.2993]
[1748662715354,0.80234003,2510.5,2510.4,1.2993]
[1748662715552,0.79639,2510.4,2510.3,3.2078]
[1748662716257,0.86794339,2510.4,2510.3,3.2078]
[1748662716750,2.12664339,2510.4,2510.3,3.2078]
[1748662718058,2.80554339,2510.4,2510.3,3.2078]
[1748662718954,7.00915339,2510.4,2509.8,3.2078]
[1748662719158,0.79655,2509.9,2509.8,3.2078]
[1748662722962,2.12615,2509.9,2509.8,3.2078]
[1748662724664,0.79655,2509.9,2509.8,3.2078]
[1748662726061,0.7966,2509.8,2509.5,3.2078]
[1748662726261,0.79657,2509.8,2509.6,1.3602]
[1748662726759,4.682,2510.1,2509.6,1.3602]
[1748662727363,6.67328,2510.1,2509.6,1.3602]
[1748662727559,0.79661,2509.7,2509.6,1.3602]
[1748662729369,0.79659,2509.8,2509.6,1.3602]
[1748662729570,1.2544,2510.2,2509.6,1.3602]
[1748662729870,0.7966,2509.8,2509.6,1.3602]
[1748662730370,0.07155339,2509.7,2509.6,1.3602]
[1748662730668,0.86816339,2509.7,2509.6,1.3602]
[1748662730864,0.07155339,2509.7,2509.6,1.3602]
[1748662731068,0.86816339,2509.7,2509.6,1.3602]
[1748662732972,0.07155339,2509.7,2509.6,1.3602]
[1748662733269,0.86816339,2509.7,2509.6,1.3602]
[1748662733771,0.07155339,2509.7,2509.6,1.3602]
[1748662734173,0.86816339,2509.7,2509.6,1.3602]
[1748662734677,0.79664,2509.6,2509.5,3.2078]
[1748662734976,0.79664,2509.6,2509.5,4.5199]
[1748662735271,0.07155339,2509.7,2509.5,4.5199]
[1748662735571,0.07155339,2509.7,2509.6,0.79664]
[1748662736473,0.07155339,2509.7,2509.5,4.5199]
[1748662736772,0.07155339,2509.7,2509.5,5.31657]
[1748662738073,0.07155339,2509.7,2509.5,4.5199]